Cogmind - Beta 17 @@@ ROGUE MODE // 2026.08.20 @ 15:21:41 Player: Cinder Result: Destroyed by S-27 Virus with Autogun Performance ------------- Evolutions (6) 3000 Regions Visited (17) 3400 Robots Destroyed (176) 880 Value Destroyed (7027) 7027 Prototype IDs (15) 300 Alien Tech Used (0) 0 Bonus (3267) 3267 TOTAL SCORE: 17874 Bonus ------- High Alert Combat Kills 436 Follower Combat Kills 638 Met Imprinter 300 Met Warlord at Base 500 MAIN.C Attacked Warlord 500 Warlord Defense Kills 916 Friendly Fire -23 Cogmind --------- Core Integrity 0/1150 Matter 219/300 Energy 77/100 System Corruption 9% Temperature Cool (0) Movement Core (250) Ox4 Location -4/Factory Parts ------- > --- POWER (2) -------- (None) > --- PROPULSION (4) --- (None) > --- UTILITY (10) ----- Scrap Suit > --- WEAPON (3) ------- Enhanced Gauss Cannon > --- INVENTORY (5) ---- Light Antimatter Reactor IFF Parser Peak State ------------ > --- POWER ------------ Micro Fission Core Light Antimatter Reactor > --- PROPULSION ------- Wheel Wheel Wheel Armored Wheel > --- UTILITY ---------- Advanced Cooling System Huge Storage Unit Wardrone Bay > --- WEAPON ----------- Heavy Plasma Cannon Heavy Plasma Cannon Heavy Phase Cannon > --- INVENTORY -------- Angular Momentum Engine Armored Wheel Armored Wheel Scrap Suit Advanced Cooling System Huge Storage Unit Energy Well Matter Compressor Advanced Signal Interpreter Seismic Detector Seismic Detector Experimental Targeting Computer Hardened Medium Armor Plating Hardened Medium Armor Plating Improved Medium Armor Plating Makeshift Light Armor Plating Medium Reactive Plating Phase Gun Matter Neutralizer Matter Neutralizer Vortex Driver Precision Grenade Launcher Vortex Catalyst Activator [Rating: 156] Favorites ----------- Power Cold Fusion Reactor Engine Angular Momentum Engine Power Core Micro Fission Core Reactor Cold Fusion Reactor Propulsion Wheel Leg Aluminum Leg Wheel Wheel Flight Unit Field Propulsion Drive Utility Huge Storage Unit Device Seismic Detector Storage Huge Storage Unit Processor Visual Processing Unit Protection Medium Reactive Plating Weapon Ion Cannon Energy Gun Particle Gun Energy Cannon Ion Cannon Ballistic Gun Assault Rifle Ballistic Cannon Enhanced Gauss Cannon Launcher Precision Grenade Launcher Special Weapon RU-N14's Throwing Claymores Slashing Weapon Plasma Sword Build | -11 -10 -10 -10 -9 -8 -7 -6 -6 -6 -6 -5 -5 -5 -5 -5 -4 -4 ------- Run | Yrd Mat Min Exi Min Mat Fac Fac Low Low Zio Pro Fac Upp Upp War Pro Fac Slots Evolved 12 | . . . . . 4 2 2 . . . . 2 . . . . 2 Power 1 | . . . . . . . . . . . . . . . . . 1 Propulsion 2 | . . . . . 2 . . . . . . . . . . . . Utility 8 | . . . . . 2 2 1 . . . . 2 . . . . 1 Weapon 1 | . . . . . . . 1 . . . . . . . . . . Parts Attached 118 | 10 7 2 . 1 20 20 10 . . 1 2 9 3 1 7 2 23 Power 15 | 1 1 1 . . 4 1 1 . . . 1 1 . . 1 . 3 Engine 9 | 1 . 1 . . 4 1 . . . . 1 . . . 1 . . Core 3 | . 1 . . . . . . . . . . 1 . . . . 1 Reactor 3 | . . . . . . . 1 . . . . . . . . . 2 Propulsion 33 | 4 1 . . 1 5 6 4 . . . . 2 . . 1 2 7 Treads . | . . . . . . . . . . . . . . . . . . Leg 5 | 2 . . . . . . . . . . . . . . . . 3 Wheel 27 | 2 1 . . 1 5 6 4 . . . . 2 . . 1 2 3 Hover . | . . . . . . . . . . . . . . . . . . Flight 1 | . . . . . . . . . . . . . . . . . 1 Utility 39 | 2 1 . . . 7 7 3 . . . 1 5 1 1 1 . 10 Device 13 | 1 . . . . 1 1 . . . . . 1 1 1 1 . 6 Storage 4 | 1 1 . . . 1 1 . . . . . . . . . . . Processor 5 | . . . . . 1 1 . . . . . 3 . . . . . Hackware . | . . . . . . . . . . . . . . . . . . Protection 17 | . . . . . 4 4 3 . . . 1 1 . . . . 4 Artifact . | . . . . . . . . . . . . . . . . . . Weapon 31 | 3 4 1 . . 4 6 2 . . 1 . 1 2 . 4 . 3 Energy Gun 8 | 1 1 . . . 4 1 . . . . . . . . 1 . . Energy Cannon 11 | . 2 . . . . 2 1 . . . . . 2 . 2 . 2 Ballistic Gun 2 | 2 . . . . . . . . . . . . . . . . . Ballistic Cannon 2 | . . . . . . 1 . . . . . . . . . . 1 Launcher 6 | . 1 1 . . . 2 1 . . . . . . . 1 . . Special Weapon 1 | . . . . . . . . . . 1 . . . . . . . Impact Weapon . | . . . . . . . . . . . . . . . . . . Slashing Weapon 1 | . . . . . . . . . . . . 1 . . . . . Piercing Weapon . | . . . . . . . . . . . . . . . . . . Special Melee Weapon . | . . . . . . . . . . . . . . . . . . Unidentified Prototypes 15 | . 1 . . . 1 3 2 . . 1 . 3 . . 4 . . Parts Lost 42 | . . . . . 8 2 1 . . . 1 1 . . . 3 26 Power 3 | . . . . . 1 . . . . . . . . . . . 2 Propulsion 21 | . . . . . 5 2 . . . . . . . . . 3 11 Utility 11 | . . . . . 2 . . . . . 1 . . . . . 8 Weapon 7 | . . . . . . . 1 . . . . 1 . . . . 5 Highest Loss Streak 16 | . . . . . 3 1 1 . . . 1 1 . . . 1 16 To Critical Strikes 1 | . . . . . . . . . . . . . . . . . 1 Average Backups 21 | 2 8 17 20 21 22 22 22 23 23 23 22 23 23 23 23 21 18 Power 1 | . 1 1 2 2 1 2 2 2 2 2 2 2 2 2 1 1 1 Propulsion 3 | 1 1 3 4 4 2 3 3 3 4 4 4 4 4 4 4 3 2 Utility 11 | . 2 7 9 9 11 12 12 12 12 12 11 13 13 12 13 13 10 Weapon 4 | . 2 4 5 5 6 4 4 5 5 5 5 4 4 5 4 4 4 Tool/Special . | . . . . . . . . . . . . . . . . . . Unused Backups 34 | . . . 1 . 8 6 3 . . . . 5 1 . . . 10 Power 8 | . . . . . 2 2 2 . . . . . . . . . 2 Propulsion . | . . . . . . . . . . . . . . . . . . Utility 19 | . . . 1 . 3 4 1 . . . . 3 1 . . . 6 Weapon 7 | . . . . . 3 . . . . . . 2 . . . . 2 Tool/Special . | . . . . . . . . . . . . . . . . . . Average Slot Usage (%) 89 | . 99 100 100 100 97 92 94 100 100 99 100 93 94 94 78 55 62 Engine 3 | . 5 1 14 14 8 7 . . . . . 4 . . 2 5 2 Core 1 | . 8 12 . . . . . . . . . . 5 5 2 . 2 Reactor 2 | . . . . . . . 5 6 6 6 5 . . . . . 2 Wheel 24 | . 16 28 28 28 34 29 26 26 26 26 26 23 23 23 23 20 16 Device 10 | . 14 14 14 14 9 6 13 13 13 13 13 11 5 5 5 5 11 Storage 7 | . 14 14 14 14 9 7 6 6 6 6 6 5 5 5 5 5 4 Processor 6 | . . . . . 8 8 6 6 6 6 6 10 17 17 9 . . Protection 11 | . . . . . 8 14 15 20 20 20 20 17 17 16 9 . 7 Energy Gun 3 | . 13 13 14 14 14 9 . . . . . . . . . . . Energy Cannon 14 | . 10 13 14 14 3 5 19 18 20 19 20 16 16 16 14 13 12 Peak Build Rating 156 | 7 13 14 12 13 26 40 48 48 46 49 48 68 75 76 146 144 156 Average Rating 57 | 5 11 13 12 12 21 36 46 46 46 45 45 60 70 72 105 141 106 On Entrance 47 | . 7 13 12 12 13 25 39 46 46 46 46 46 68 70 75 144 141 Avg Prop Armor Cover (%) 5 | . 10 . . . . . . . . . . . . . . . 2 Naked Turns 67 | . . . . . . . . . . . . . . . . . 67 Heaviest Build 187 | 13 93 93 93 93 101 139 155 145 145 145 145 163 163 163 173 173 187 Greatest Support 50 | 32 26 26 26 26 46 46 46 46 46 46 46 48 44 44 50 44 46 Greatest Overweight (x) 8 | . 3 3 3 3 3 3 3 3 3 3 3 3 3 3 3 5 8 Average Overweight (x) 2 | . . 3 3 3 2 2 2 3 3 2 2 3 3 3 2 3 3 Largest Inventory Capacity 25 | 8 25 25 25 25 25 25 25 25 25 25 25 25 25 25 25 25 25 Average Capacity 24 | 7 11 25 25 25 25 25 25 25 25 25 25 25 25 25 25 25 22 Most Carried 25 | 5 12 21 21 24 25 25 25 25 25 25 25 25 25 25 25 25 25 Average Carried 22 | 2 8 17 20 21 23 24 24 24 25 24 24 24 24 24 24 23 20 Final Capacity 25 | 8 25 25 25 25 25 25 25 25 25 25 25 25 25 25 25 25 5 Final Carried 25 | 5 12 20 20 24 24 25 25 25 25 25 25 25 25 25 25 25 2 Scrap Suit Usage (%) 1 | . . . . . . . . . . . . . . . . . 1 Class Distribution -------------------- 51% | Scavenger-Tank 27% | Scavenger-Mutant 12% | Gunner 5% | Mutant Dominant Class ---------------- Mutant | -10/Materials Scavenger-Mutant | -10/Mines Scavenger-Mutant | -10/Exiles Scavenger-Mutant | -9/Mines Scavenger-Mutant | -8/Materials Scavenger-Mutant | -7/Factory Scavenger-Tank | -6/Factory Scavenger-Tank | -6/Lower Caves Scavenger-Tank | -6/Lower Caves Scavenger-Tank | -6/Zion Scavenger-Tank | -5/Proximity Caves Scavenger-Tank | -5/Factory Scavenger-Tank | -5/Upper Caves Scavenger-Tank | -5/Upper Caves Scavenger-Tank | -5/Warlord Gunner | -4/Proximity Caves Gunner | -4/Factory Resources | -11 -10 -10 -10 -9 -8 -7 -6 -6 -6 -6 -5 -5 -5 -5 -5 -4 -4 ----------- Run | Yrd Mat Min Exi Min Mat Fac Fac Low Low Zio Pro Fac Upp Upp War Pro Fac Matter Collected 4188 | 298 179 238 . 10 250 474 363 287 30 26 40 462 171 142 100 467 651 Remotely . | . . . . . . . . . . . . . . . . . . Salvage Created 6178 | 14 195 66 . . 884 730 613 491 75 . 142 278 253 204 440 439 1354 Parts 304 | 2 8 13 . . 58 53 25 12 4 . 8 13 7 14 12 12 63 Haulers Intercepted 1 | . . . . . 1 . . . . . . . . . . . . Recyclers Shooed 3 | . . 1 . . . 1 1 . . . . . . . . . . Parts Field Recycled . | . . . . . . . . . . . . . . . . . . Retrieved Matter . | . . . . . . . . . . . . . . . . . . Parts Self-Destructed 55 | . . . . . . . . 9 4 1 15 . 3 14 . 9 . Prevented 5 | . . . . . . . . 5 . . . . . . . . . Parts Restored . | . . . . . . . . . . . . . . . . . . Kills | -11 -10 -10 -10 -9 -8 -7 -6 -6 -6 -6 -5 -5 -5 -5 -5 -4 -4 ------- Run | Yrd Mat Min Exi Min Mat Fac Fac Low Low Zio Pro Fac Upp Upp War Pro Fac Combat Hostiles Destroyed 130 | . 3 6 . . 18 11 6 12 1 . 2 7 8 8 9 11 28 Guns 19 | . 2 . . . 17 . . . . . . . . . . . . Cannons 45 | . 1 1 . . . 2 4 4 1 . 1 3 4 2 4 5 13 AOE 56 | . . 5 . . . 6 2 6 . . . 4 4 6 5 5 13 Classes Destroyed 19 | 1 2 2 . . 5 2 2 1 . . 1 . . . 2 . 1 Worker 14 | . . 1 . . 3 2 3 . . . . 1 . . . . 4 Builder 11 | . . . . . 3 4 1 . . . . . . . . . 3 Tunneler 5 | 1 . 1 . . 1 1 . . . . . 1 . . . . . Hauler 1 | . . . . . 1 . . . . . . . . . . . . Recycler 3 | . . . . . . 2 1 . . . . . . . . . . Minesweeper 1 | . . . . . . . . 1 . . . . . . . . . Mechanic 1 | . . . . . . . 1 . . . . . . . . . . Watcher 10 | . 3 . . . 2 2 2 . . . . 1 . . . . . Swarmer 40 | . . 6 . . 7 3 . 5 . . . 4 4 6 . . 5 Grunt 35 | . 3 . . . 4 2 2 5 . . . . 3 . 2 6 8 Brawler 4 | . . . . . . . 1 . . . . . 1 . 2 . . Duelist 1 | . . . . . . . . . . . . . . . 1 . . Protector 1 | . . . . . . . . . . . . . . . 1 . . Sentry 13 | . . . . . 4 2 2 1 1 . . . . 1 . . 2 Specialist 2 | . . . . . 2 . . . . . . . . . . . . Hunter 18 | . . . . . 1 2 . 1 . . 1 1 . . . 4 8 Programmer 13 | . . . . . . 2 1 . . . . 2 . . 3 1 4 Heavy 1 | . . . . . . . . . . . . . . . . . 1 Behemoth 2 | . . . . . . . . . . . 1 . . 1 . . . Packrat 1 | . . . . . . . . 1 . . . . . . . . . Best Kill Streak 7 | 1 2 3 . . 5 6 4 5 1 . 1 5 4 4 7 3 7 Combat Bots Only 7 | . 2 3 . . 4 3 3 5 1 . 1 4 4 4 7 3 7 Max Kills in Single Turn 4 | 1 1 2 . . 2 3 1 3 1 . 1 2 2 3 3 1 4 Gunslinging . | . . . . . . . . . . . . . . . . . . Exploded 3 | . . 2 . . . 2 1 3 . . . 2 2 3 2 1 3 Melee . | . . . . . . . . . . . . . . . . . . Uniques/NPCs Destroyed . | . . . . . . . . . . . . . . . . . . Combat | -11 -10 -10 -10 -9 -8 -7 -6 -6 -6 -6 -5 -5 -5 -5 -5 -4 -4 -------- Run | Yrd Mat Min Exi Min Mat Fac Fac Low Low Zio Pro Fac Upp Upp War Pro Fac Hostile Shots Fired 1063 | . 6 15 . . 120 104 52 84 18 . 21 25 9 32 14 143 420 Missed 371 | . 1 5 . . 31 28 21 37 8 . 7 7 2 14 3 49 158 Hits 692 | . 5 10 . . 89 76 31 47 10 . 14 18 7 18 11 94 262 Projectile 692 | . 5 10 . . 89 76 31 47 10 . 14 18 7 18 11 94 262 AOE 1 | . . . . . . . . . . . . . . . . . 1 Critical Strikes 25 | . . . . . 2 2 . 1 . . . 2 . 1 3 2 12 Actively Blocked 1 | . . . . . . . . 1 . . . . . . . . . Damage Taken 11346 | . 59 81 . . 1116 879 433 669 63 . 158 227 91 255 122 2015 5178 Core 1655 | . 10 16 . . 141 51 7 77 10 . . . . 65 8 107 1163 Absorbed by Shields 116 | . . . . . . . . . . . . . . . 116 . . Redirected to Shielding 89 | . . . . . . . 14 64 1 . . 10 . . . . . Ignored by Resistances 837 | . . . . . . 102 26 135 12 . 43 62 26 89 . . 342 Regen/Repaired (Parts) 153 | . . . . . 38 70 . . . . . . . . 45 . . Core Remaining (%) 87 | 100 . . . 89 74 92 . . . . 88 . . . . 82 . Volleys Fired 325 | 5 15 9 . . 67 37 26 22 2 . 7 15 9 9 9 37 56 Largest 3 | 2 2 2 . . 2 2 3 3 3 . 3 3 3 3 3 3 3 Hottest 295 | 70 133 133 . . 133 120 185 185 185 . 185 185 215 260 260 285 295 Shots Fired 765 | 10 28 18 . . 134 73 77 65 6 . 21 39 25 27 25 71 146 Gun 186 | 10 13 7 . . 113 43 . . . . . . . . . . . Cannon 484 | . 13 7 . . 21 18 70 55 6 . 21 35 18 23 20 46 131 Launcher 90 | . 2 4 . . . 12 7 10 . . . 4 7 4 . 25 15 Special 5 | . . . . . . . . . . . . . . . 5 . . Kinetic 7 | 5 . . . . . . . . . . . . . . . . 2 Thermal 599 | 5 26 14 . . 114 18 70 55 6 . 21 35 18 23 20 46 128 Explosive 94 | . 2 4 . . . 12 7 10 . . . 4 7 4 5 25 14 Electromagnetic 63 | . . . . . 20 43 . . . . . . . . . . . Entropic 2 | . . . . . . . . . . . . . . . . . 2 Robot Hit Streak 22 | 4 13 8 . . 22 9 12 12 3 . 7 16 17 15 6 10 12 Robot Miss Streak 5 | 2 4 1 . . 4 5 3 2 3 . 3 1 1 1 3 2 5 Penetration Max . | . . . . . . . . . . . . . . . . . . Secondary Targets 2 | . . . . . 1 1 . . . . . . . . . . . Max Gunslinging Chain 1 | . . . . . 1 1 . . . . . . . . . . . Shots Hit Robots 470 | 6 16 13 . . 99 45 45 35 3 . 15 24 11 21 14 44 79 Core Hits 306 | 1 8 7 . . 43 39 27 23 2 . 4 15 13 11 18 34 61 Critical Kills 3 | . . . . . . . . . . . . . . . . 1 2 Critical Parts Destroyed . | . . . . . . . . . . . . . . . . . . Critical Strikes 6 | . . . . . 3 . . . . . . . . . . 1 2 Burn 3 | . . . . . 3 . . . . . . . . . . . . Meltdown 3 | . . . . . . . . . . . . . . . . 1 2 Melee Attacks . | . . . . . . . . . . . . . . . . . . Impact . | . . . . . . . . . . . . . . . . . . Slashing . | . . . . . . . . . . . . . . . . . . Piercing . | . . . . . . . . . . . . . . . . . . Sneak Attacks . | . . . . . . . . . . . . . . . . . . Combat Hostiles . | . . . . . . . . . . . . . . . . . . Follow-up Attacks . | . . . . . . . . . . . . . . . . . . Damage Inflicted 20173 | 84 272 495 . . 1734 1855 1522 1286 71 . 412 861 777 1140 1744 2742 5178 Guns 2350 | 84 111 94 . . 1419 642 . . . . . . . . . . . Cannons 8257 | . 161 82 . . 286 214 1017 761 71 . 412 642 255 596 395 956 2409 Explosions 9394 | . . 319 . . 29 999 505 525 . . . 219 522 544 1183 1786 2763 Melee . | . . . . . . . . . . . . . . . . . . Ramming 6 | . . . . . . . . . . . . . . . . . 6 Kinetic 45 | 45 . . . . . . . . . . . . . . . . . Thermal 10208 | 39 272 176 . . 1486 351 1017 761 71 . 412 642 255 596 395 956 2779 Explosive 7924 | . . 319 . . . 862 505 525 . . . 219 522 544 1183 1786 1459 Electromagnetic 890 | . . . . . 248 642 . . . . . . . . . . . Impact . | . . . . . . . . . . . . . . . . . . Slashing 166 | . . . . . . . . . . . . . . . 166 . . Piercing . | . . . . . . . . . . . . . . . . . . Entropic 934 | . . . . . . . . . . . . . . . . . 934 Highest Corruption 9 | . . . . . . 1 1 1 1 1 . . . . . 1 9 Average Corruption 2 | . . . . . . 1 1 1 1 1 . . . . . 1 6 Corruption Purged 4 | . . . . . . . . . . . . . . . . . 4 Corruption Blocked . | . . . . . . . . . . . . . . . . . . Effects 35 | . . . . . . 1 2 8 3 . . . . . . 2 19 Message Errors 4 | . . . . . . . . . . . . . . . . . 4 Matter Fused 15 | . . . . . . 1 . 4 3 . . . . . . . 7 Heat Flow Errors 8 | . . . . . . . . 3 . . . . . . . 1 4 Energy Discharges 2 | . . . . . . . 1 . . . . . . . . . 1 Parts Rejected 1 | . . . . . . . . . . . . . . . . . 1 Data Loss (minor) 1 | . . . . . . . . 1 . . . . . . . . . Data Loss (major) 1 | . . . . . . . . . . . . . . . . . 1 Misfires 1 | . . . . . . . . . . . . . . . . . 1 Weapon Failures 2 | . . . . . . . 1 . . . . . . . . 1 . Overload Shots . | . . . . . . . . . . . . . . . . . . Overflow Damage 594 | . . 50 . . . 62 14 69 . . . 9 23 65 74 17 211 Projectiles 184 | . . . . . . 2 14 19 . . . 9 6 6 57 6 65 Explosions 410 | . . 50 . . . 60 . 50 . . . . 17 59 17 11 146 Melee . | . . . . . . . . . . . . . . . . . . Knockbacks . | . . . . . . . . . . . . . . . . . . Impact . | . . . . . . . . . . . . . . . . . . Kinetic . | . . . . . . . . . . . . . . . . . . Secondary . | . . . . . . . . . . . . . . . . . . Self-Inflicted Damage 745 | . 1 . . . 48 145 23 . . . . . . 11 . 187 330 Shots 20 | . 1 . . . 1 4 1 . . . . . . 1 . 7 5 Rammed 3 | . . . . . . . . . . . . . . . . . 3 Targets Rammed 3 | . . . . . . . . . . . . . . . . . 3 Kicked . | . . . . . . . . . . . . . . . . . . Crushed . | . . . . . . . . . . . . . . . . . . Highest Temperature 412 | 27 410 156 . . 279 325 144 284 54 . 42 153 168 244 304 412 332 Average Temperature 97 | 12 111 62 . . 68 123 34 48 32 . 20 58 47 99 124 205 98 Received Heat Transfer 1480 | . 33 . . . 324 180 120 150 24 . 24 . 18 21 29 292 265 Effects 6 | . . . . . . . . . . . . . . . . 6 . Shutdowns 1 | . . . . . . . . . . . . . . . . 1 . Energy Bleed 1 | . . . . . . . . . . . . . . . . 1 . Interference 4 | . . . . . . . . . . . . . . . . 4 . Siege Activations . | . . . . . . . . . . . . . . . . . . Martial Activations . | . . . . . . . . . . . . . . . . . . Shielding Activations . | . . . . . . . . . . . . . . . . . . Robots Disrupted . | . . . . . . . . . . . . . . . . . . Combat Hostiles . | . . . . . . . . . . . . . . . . . . Robots Corrupted 3 | . . . . . . 3 . . . . . . . . . . . Combat Hostiles 3 | . . . . . . 3 . . . . . . . . . . . Parts Fried 5 | . . . . . 1 3 . 1 . . . . . . . . . Impact Corruptions . | . . . . . . . . . . . . . . . . . . Robots Melted 6 | . . . . . 1 . . 1 . . 1 . . . . 1 2 Combat Hostiles 6 | . . . . . 1 . . 1 . . 1 . . . . 1 2 Parts Melted 37 | . 1 . . . 11 1 7 4 . . 1 4 1 . . 2 5 Heat Transferred 15411 | 111 592 370 . . 3491 446 1517 1147 111 . 592 888 370 666 341 1166 3603 Parts Sabotaged . | . . . . . . . . . . . . . . . . . . Parts Stolen . | . . . . . . . . . . . . . . . . . . Parts Stripped . | . . . . . . . . . . . . . . . . . . Power Chain Reactions 4 | . . . . . 1 3 . . . . . . . . . . . Alert | -11 -10 -10 -10 -9 -8 -7 -6 -6 -6 -6 -5 -5 -5 -5 -5 -4 -4 ------- Run | Yrd Mat Min Exi Min Mat Fac Fac Low Low Zio Pro Fac Upp Upp War Pro Fac Maximum Alert Level 3 | . . . . . 1 1 . . . . . . . . . . 3 Low Security (%) 81 | 100 100 100 . 100 69 98 100 . . . . 100 . . . . 21 Level 1 5 | . . . . . 30 1 . . . . . . . . . . 7 Level 2 5 | . . . . . . . . . . . . . . . . . 30 Level 3 7 | . . . . . . . . . . . . . . . . . 39 Level 4 . | . . . . . . . . . . . . . . . . . . Level 5 . | . . . . . . . . . . . . . . . . . . High Security . | . . . . . . . . . . . . . . . . . . Max Security . | . . . . . . . . . . . . . . . . . . Peak Influence 1003 | 5 51 130 . . 287 205 105 . . . . 153 . . . . 1003 Initial 127 | . 3 . . . . 127 64 . . . . 2 . . . . . Average 154 | . 9 48 . . 135 95 25 . . . . 60 . . . . 552 Influence Increases 5263 | 5 111 308 . . 687 453 281 265 20 . 185 307 180 180 313 315 1653 Destroy 0b10 Robot/C 2900 | . 60 180 . . 420 220 120 240 20 . 100 160 160 160 220 280 560 Destroy 0b10 Robot/NC 240 | 5 15 10 . . 50 55 40 5 . . . 15 . . 10 . 35 Destroy Leader 562 | . 16 30 . . 126 84 44 20 . . 30 32 20 20 . 30 110 Allied During Kill 144 | . . 20 . . 9 . . . . . 55 17 . . 38 5 . Successful Hack 75 | . 6 . . . . 9 32 . . . . 8 . . . . 20 Select Force Hacks 80 | . . . . . 30 . . . . . . . . . . . 50 Disable Machine 375 | . . 60 . . . 30 15 . . . . 15 . . . . 255 Destroy Structure 542 | . 14 8 . . 7 55 30 . . . . 60 . . . . 368 Partial Spotted 15 | . . . . . . . . . . . . . . . . . 15 Lose Combat Pursuer 330 | . . . . . 45 . . . . . . . . . 45 . 240 Influence Decreases 4260 | . 116 224 84 . 406 602 375 189 134 . 180 273 219 80 180 548 650 Entered New Map 697 | . 2 . 84 . . 154 68 15 23 . . 3 15 . 100 233 . Time Decay 2954 | . 114 204 . . 326 428 297 174 111 . 91 260 204 80 30 245 390 Lost Part 390 | . . . . . 60 20 10 . . . . 10 . . . 30 260 Lost Ally 219 | . . 20 . . 20 . . . . . 89 . . . 50 40 . Squads Dispatched 24 | . 1 . . . 6 5 2 . . . . 1 . . . . 9 Investigation 4 | . . . . . 2 . . . . . . . . . . . 2 Extermination 7 | . . . . . . 2 2 . . . . 1 . . . . 2 Reinforcement 11 | . 1 . . . 4 2 . . . . . . . . . . 4 Assault 1 | . . . . . . . . . . . . . . . . . 1 Garrison 1 | . . . . . . 1 . . . . . . . . . . . Intercept . | . . . . . . . . . . . . . . . . . . Searches Triggered . | . . . . . . . . . . . . . . . . . . Construction Impeded 1 | . . . . . . 1 . . . . . . . . . . . Haulers Reinforced 1 | . . . . . . . . . . . . . . . . . 1 Active Scanning Responses . | . . . . . . . . . . . . . . . . . . Cargo Convoy Interrupts . | . . . . . . . . . . . . . . . . . . Stealth | -11 -10 -10 -10 -9 -8 -7 -6 -6 -6 -6 -5 -5 -5 -5 -5 -4 -4 --------- Run | Yrd Mat Min Exi Min Mat Fac Fac Low Low Zio Pro Fac Upp Upp War Pro Fac Distress Signals 6 | . . . . . 1 1 . . . . . . . . 2 . 2 Communications Jammed . | . . . . . . . . . . . . . . . . . . Distress Signals . | . . . . . . . . . . . . . . . . . . Times Spotted 225 | . 7 9 . 2 33 18 9 14 1 . 5 9 8 8 28 15 59 Peak Tracking Total 17 | . 2 3 . 3 5 4 3 4 1 . 2 5 4 4 17 4 12 Tactical Retreats 9 | . . . . . 2 . . . . . . . . . 2 . 5 Traps | -11 -10 -10 -10 -9 -8 -7 -6 -6 -6 -6 -5 -5 -5 -5 -5 -4 -4 ------- Run | Yrd Mat Min Exi Min Mat Fac Fac Low Low Zio Pro Fac Upp Upp War Pro Fac Traps Triggered 8 | . . . . . 2 . 4 . . . . . . . . . 2 Indirectly . | . . . . . . . . . . . . . . . . . . Trap Hack Attempts . | . . . . . . . . . . . . . . . . . . Triggered . | . . . . . . . . . . . . . . . . . . Disarmed . | . . . . . . . . . . . . . . . . . . Reprogrammed . | . . . . . . . . . . . . . . . . . . Reused . | . . . . . . . . . . . . . . . . . . Traps Extracted . | . . . . . . . . . . . . . . . . . . Installed . | . . . . . . . . . . . . . . . . . . Triggered . | . . . . . . . . . . . . . . . . . . Machines | -11 -10 -10 -10 -9 -8 -7 -6 -6 -6 -6 -5 -5 -5 -5 -5 -4 -4 ---------- Run | Yrd Mat Min Exi Min Mat Fac Fac Low Low Zio Pro Fac Upp Upp War Pro Fac Machines Disabled 26 | . 1 4 . . . 2 1 . . . . 1 . . . . 17 Max in Single Turn 6 | . 1 4 . . . 1 1 . . . . 1 . . . . 6 Garrison Access 1 | . . . . . . . . . . . . . . . . . 1 Machines Repaired . | . . . . . . . . . . . . . . . . . . Machines Dismantled . | . . . . . . . . . . . . . . . . . . Machines Sabotaged . | . . . . . . . . . . . . . . . . . . Overloaded Fab Kills 1 | . . . . . . . . . . . . . . . . . 1 Hacking | -11 -10 -10 -10 -9 -8 -7 -6 -6 -6 -6 -5 -5 -5 -5 -5 -4 -4 --------- Run | Yrd Mat Min Exi Min Mat Fac Fac Low Low Zio Pro Fac Upp Upp War Pro Fac Machines Accessed 32 | . 4 . 1 . 3 5 8 . . . . 4 1 . 2 . 4 Terminals 12 | . 4 . . . 1 1 4 . . . . 2 . . . . . Fabricators 8 | . . . . . . 1 3 . . . . 1 . . . . 3 Repair Stations 3 | . . . . . 1 2 . . . . . . . . . . . Recycling Units 1 | . . . . . 1 . . . . . . . . . . . . Scanalyzers 1 | . . . . . . . . . . . . 1 . . . . . Garrison Access 3 | . . . . . . 1 1 . . . . . . . . . 1 Total Hacks 73 | . 10 . 1 . 6 12 16 . . . . 15 1 . 3 . 9 Successful 35 | . 4 . 1 . 3 7 4 . . . . 8 1 . 3 . 4 Failed 37 | . 6 . . . 2 5 12 . . . . 7 . . . . 5 Catastrophic 7 | . 1 . . . . . 3 . . . . 2 . . . . 1 Database Lockouts 1 | . . . . . 1 . . . . . . . . . . . . Manual 41 | . 8 . . . 7 4 11 . . . . 3 . . . . 8 Terminals 27 | . 10 . . . 4 2 7 . . . . 4 . . . . . Fabricators 17 | . . . . . . 1 7 . . . . 1 . . . . 8 Repair Stations 8 | . . . . . 1 7 . . . . . . . . . . . Recycling Units 1 | . . . . . 1 . . . . . . . . . . . . Scanalyzers 10 | . . . . . . . . . . . . 10 . . . . . Garrison Access 5 | . . . . . . 2 2 . . . . . . . . . 1 Terminal Hacks 8 | . 2 . 1 . 1 . . . . . . . 1 . 3 . . Record 3 | . . . 1 . . . . . . . . . . . 2 . . Part Schematic 1 | . 1 . . . . . . . . . . . . . . . . Robot Analysis 1 | . . . . . 1 . . . . . . . . . . . . Open Door 2 | . . . . . . . . . . . . . 1 . 1 . . Branch Access Points 1 | . 1 . . . . . . . . . . . . . . . . Fabricator Hacks 1 | . . . . . . . 1 . . . . . . . . . . Network Status 1 | . . . . . . . 1 . . . . . . . . . . Repair Station Hacks 6 | . . . . . . 6 . . . . . . . . . . . Scan Component 3 | . . . . . . 3 . . . . . . . . . . . Repair 3 | . . . . . . 3 . . . . . . . . . . . Recycling Unit Hacks . | . . . . . . . . . . . . . . . . . . Scanalyzer 8 | . . . . . . . . . . . . 8 . . . . . Insert Component 3 | . . . . . . . . . . . . 3 . . . . . Analyze 3 | . . . . . . . . . . . . 3 . . . . . Retrieve Study 2 | . . . . . . . . . . . . 2 . . . . . Garrison Access Hacks 1 | . . . . . . . . . . . . . . . . . 1 Seal Access 1 | . . . . . . . . . . . . . . . . . 1 Unauthorized Hacks 11 | . 2 . . . 2 1 3 . . . . . . . . . 3 Terminals 4 | . 2 . . . . 1 1 . . . . . . . . . . Botnet 4 | . 2 . . . . 1 1 . . . . . . . . . . Fabricators 5 | . . . . . . . 2 . . . . . . . . . 3 Liberate 1 | . . . . . . . . . . . . . . . . . 1 Fabnet 3 | . . . . . . . 2 . . . . . . . . . 1 Overload 1 | . . . . . . . . . . . . . . . . . 1 Repair Stations 1 | . . . . . 1 . . . . . . . . . . . . Patch 1 | . . . . . 1 . . . . . . . . . . . . Recycling Units 1 | . . . . . 1 . . . . . . . . . . . . Tunnel 1 | . . . . . 1 . . . . . . . . . . . . Scanalyzers . | . . . . . . . . . . . . . . . . . . Garrison Access . | . . . . . . . . . . . . . . . . . . Data Cores Recovered . | . . . . . . . . . . . . . . . . . . Used . | . . . . . . . . . . . . . . . . . . Hacking Detections 24 | . 4 . . . 1 5 7 . . . . 4 . . . . 3 Full Trace Events 1 | . . . . . . . . . . . . . . . . . 1 Feedback Events . | . . . . . . . . . . . . . . . . . . Feedback Blocked . | . . . . . . . . . . . . . . . . . . Robot Schematics Acquired . | . . . . . . . . . . . . . . . . . . Robots Built . | . . . . . . . . . . . . . . . . . . Authchips . | . . . . . . . . . . . . . . . . . . Time . | . . . . . . . . . . . . . . . . . . Total Robot Build Rating . | . . . . . . . . . . . . . . . . . . Part Schematics Acquired 4 | . 1 . . . . . . . . . . 3 . . . . . Parts Built . | . . . . . . . . . . . . . . . . . . Authchips . | . . . . . . . . . . . . . . . . . . Time . | . . . . . . . . . . . . . . . . . . Total Part Build Rating . | . . . . . . . . . . . . . . . . . . Part Studies Acquired 2 | . . . . . . . . . . . . 2 . . . . . Parts Repaired 3 | . . . . . . 3 . . . . . . . . . . . Time 78 | . . . . . . 78 . . . . . . . . . . . Parts Recycled . | . . . . . . . . . . . . . . . . . . Recycled Matter . | . . . . . . . . . . . . . . . . . . Retrieved Matter . | . . . . . . . . . . . . . . . . . . Retrieved Components . | . . . . . . . . . . . . . . . . . . Parts Scanalyzed 3 | . . . . . . . . . . . . 3 . . . . . Part Schematics Acquired 3 | . . . . . . . . . . . . 3 . . . . . Parts Damaged 1 | . . . . . . . . . . . . 1 . . . . . Bothacking | -11 -10 -10 -10 -9 -8 -7 -6 -6 -6 -6 -5 -5 -5 -5 -5 -4 -4 ------------ Run | Yrd Mat Min Exi Min Mat Fac Fac Low Low Zio Pro Fac Upp Upp War Pro Fac Used RIF Installer . | . . . . . . . . . . . . . . . . . . Robots Hacked 2 | . . . . . . . . . . . . . . . 2 . . Non-combat . | . . . . . . . . . . . . . . . . . . Combat 2 | . . . . . . . . . . . . . . . 2 . . Robot Hacks Applied . | . . . . . . . . . . . . . . . . . . Relay Couplers Released 2 | . . . . . . . . . . . . . . . . . 2 Machine Destruction 2 | . . . . . . . . . . . . . . . . . 2 Fabnet Peak Effective % 6 | . . . . . . . . . . . 6 6 6 6 6 2 2 Autooverrided 2 | . . . . . . . . . . . . . . . 2 . . Robots Rewired 3 | . . . . . . . . . . . . . . . 3 . . Allies Hacked . | . . . . . . . . . . . . . . . . . . Hacks Repelled . | . . . . . . . . . . . . . . . . . . Allies | -11 -10 -10 -10 -9 -8 -7 -6 -6 -6 -6 -5 -5 -5 -5 -5 -4 -4 -------- Run | Yrd Mat Min Exi Min Mat Fac Fac Low Low Zio Pro Fac Upp Upp War Pro Fac Total Allies 16 | . . 3 . . . . . . . 8 . . . . 5 . . Largest Group 8 | . . 3 2 2 2 . . . . 8 8 2 . . 4 2 . Highest-Rated Group 208 | . . 40 32 32 32 . . . . 208 208 57 . . 183 90 . Highest-Rated Ally 64 | . . 16 16 16 16 . . . . 31 31 31 . . 64 49 . Total Orders . | . . . . . . . . . . . . . . . . . . Ally Attacks 123 | . . 6 . 2 22 . . . . . 40 11 . . 31 11 . Total Damage 3277 | . . 65 . 34 261 . . . . . 803 125 . . 1537 452 . Kills 19 | . . 3 . . 3 . . . . . 3 1 . . 6 3 . Allies Corrupted . | . . . . . . . . . . . . . . . . . . Allies Melted . | . . . . . . . . . . . . . . . . . . Intel | -11 -10 -10 -10 -9 -8 -7 -6 -6 -6 -6 -5 -5 -5 -5 -5 -4 -4 ------- Run | Yrd Mat Min Exi Min Mat Fac Fac Low Low Zio Pro Fac Upp Upp War Pro Fac Active Infowar (turns) 9253 | 6 519 640 312 159 364 1046 1207 611 466 1202 282 619 581 300 523 . 416 Optics 6837 | . . . . . . 1046 1207 611 466 1202 282 619 581 300 523 . . IFF 31 | . . . . . . . . . . . . . . . . . 31 Seismic 7408 | 6 519 640 312 159 364 431 1201 611 466 1202 282 617 69 144 . . 385 Robot Analysis Total 1 | . . . . . 1 . . . . . . . . . . . . Derelict Logs Recovered 5 | . . . . . . . . 2 . 2 1 . . . . . . Drone Launches 1 | . . . . . . . . . . . . . . . 1 . . Drone Recoveries . | . . . . . . . . . . . . . . . . . . Exploration | -11 -10 -10 -10 -9 -8 -7 -6 -6 -6 -6 -5 -5 -5 -5 -5 -4 -4 ------------- Run | Yrd Mat Min Exi Min Mat Fac Fac Low Low Zio Pro Fac Upp Upp War Pro Fac Turns Passed 11627 | 92 519 640 312 159 831 1046 1207 611 466 1202 282 619 581 300 937 636 1187 Spaces Moved 7759 | 51 376 426 229 116 434 624 825 398 354 802 188 410 448 215 700 373 790 Core 169 | 1 . . . . . . . . . . . . . . . . 168 Treads . | . . . . . . . . . . . . . . . . . . Legs 125 | 29 93 . . . . . . . . . . . . . . . 3 Wheels 7437 | 21 283 426 229 116 434 624 825 398 354 802 188 410 448 215 700 373 591 Hover . | . . . . . . . . . . . . . . . . . . Flight 28 | . . . . . . . . . . . . . . . . . 28 Fastest Speed 45 | 50 90 135 135 135 110 115 115 130 130 115 115 120 120 120 105 120 45 Average Speed 124 | 110 109 135 135 135 113 121 129 130 130 129 129 125 120 120 120 133 115 Slowest Speed 330 | 120 135 135 135 135 125 131 130 130 130 130 130 132 120 120 127 151 330 Overloaded Moves . | . . . . . . . . . . . . . . . . . . Propulsion Burnouts . | . . . . . . . . . . . . . . . . . . Robots Hopped 2 | . . . . . . . . . . . . . . . . . 2 Potential Cave-ins . | . . . . . . . . . . . . . . . . . . Cave-ins Triggered . | . . . . . . . . . . . . . . . . . . Exploration Rate (%) 47 | 3 60 59 68 36 28 22 26 62 66 85 42 10 69 52 85 49 27 Regions Visited 17 Branch Regions 11 Pre-discovered Areas 8 | . . 1 1 . 1 . . . . 4 1 . . . . . . Known Exits Taken 4 | . 1 . . . . . . . . . . 1 1 1 . . . Unknown Exits Taken 13 | 1 . 1 1 1 1 1 1 1 1 1 1 . . . 1 1 . Scrap Searched 14 | . . 2 . 2 . . . . 2 3 1 . 1 1 . 2 . Spaces Dug 5 | . . . . . . . . . . . . 2 . . . . 3 Terrain Destroyed 712 | . 13 12 . . 4 54 36 71 . . 1 36 50 42 56 147 190 Melee . | . . . . . . . . . . . . . . . . . . Projectile 84 | . . . . . . . 6 7 . . 1 3 1 4 5 17 40 AOE 628 | . 13 12 . . 4 54 30 64 . . . 33 49 38 51 130 150 Terrain Rammed . | . . . . . . . . . . . . . . . . . . Walls Destroyed . | . . . . . . . . . . . . . . . . . . Machines Disabled . | . . . . . . . . . . . . . . . . . . Actions | -11 -10 -10 -10 -9 -8 -7 -6 -6 -6 -6 -5 -5 -5 -5 -5 -4 -4 --------- Run | Yrd Mat Min Exi Min Mat Fac Fac Low Low Zio Pro Fac Upp Upp War Pro Fac Total 9069 | 71 455 471 232 118 640 849 902 440 355 962 210 492 472 233 779 447 941 Wait 538 | 1 38 22 2 . 68 103 16 9 . 155 9 24 1 1 35 25 29 Move 7739 | 50 375 425 228 115 433 623 824 397 353 801 187 409 447 214 699 372 787 Hop 1 | . . . . . . . . . . . . . . . . . 1 Pick Up 112 | 5 10 8 1 2 25 25 7 2 . 1 . 9 2 1 2 3 9 Fast Attach 58 | 7 3 1 . . 6 8 5 . . 2 3 6 . . 6 . 11 Attach 48 | . . . . . 12 7 3 . . . 1 1 . . 1 2 21 Detach 17 | . . 1 . . 2 1 1 . . . 1 2 . . 3 . 6 Swap 106 | 3 6 4 . 1 9 16 10 8 . . . 10 9 7 3 7 13 Drop 113 | . 8 1 1 . 18 29 10 2 . 3 2 16 4 1 12 1 5 Fire 325 | 5 15 9 . . 67 37 26 22 2 . 7 15 9 9 9 37 56 Melee . | . . . . . . . . . . . . . . . . . . Ram 3 | . . . . . . . . . . . . . . . . . 3 Kick . | . . . . . . . . . . . . . . . . . . Crush . | . . . . . . . . . . . . . . . . . . Escape Stasis . | . . . . . . . . . . . . . . . . . . Rewire 9 | . . . . . . . . . . . . . . . 9 . . Trap . | . . . . . . . . . . . . . . . . . . Miscellaneous . | . . . . . . . . . . . . . . . . . . Route ------- -11/Scrapyard -10/Materials (discovered 3 exits: [*Mat] / *Min x2) -10/Mines (discovered 2 exits: [*Mat] / *Exi) -10/Exiles -9/Mines -8/Materials -7/Factory -6/Factory (discovered 2 exits: *Fac / [*Low]) -6/Lower Caves -6/Lower Caves -6/Zion -5/Proximity Caves -5/Factory -5/Upper Caves -5/Upper Caves -5/Warlord -4/Proximity Caves -4/Factory History --------- Turn | Location | Event 25 | -11/Scrapyard | Discovered new exit (range 15) 93 | -11/Scrapyard | Entered Materials 316 | -10/Materials | Build established: Mutant 361 | -10/Materials | Identified exit to Mines 432 | -10/Materials | Discovered new exit (range 16) 612 | -10/Materials | Entered Mines 664 | -10/Mines | Build established: Scavenger-Mutant 665 | -10/Mines | Received a Rocket Launcher from a helpful Derelict 744 | -10/Mines | Discovered new exit (range 7) 761 | -10/Mines | Assisted by bots powering up and referring to "LRC-V3" 799 | -10/Mines | Found a damaged Exp. Sensor Array with a note attached 868 | -10/Mines | Learned location of Storage (-7) 965 | -10/Mines | Joined a pair of Derelicts in attacking an 0b10 outpost 1243 | -10/Mines | Deemed a non-threat by the Exiles lab entrance 1243 | -10/Mines | Discovered new exit (range 5) 1252 | -10/Mines | Entered Exiles 1252 | -10/Exiles | Accompanied by 2 allies 1285 | -10/Exiles | Met 8R-AWN 1306 | -10/Exiles | Met EX-HEX 1346 | -10/Exiles | Met EX-BIN 1415 | -10/Exiles | Met EX-DEC 1444 | -10/Exiles | Visited The Gauntlet 1506 | -10/Exiles | Learned location of Zion (-6) 1551 | -10/Exiles | Discovered new exit (range 10) 1564 | -10/Exiles | Entered Mines 1564 | -9/Mines | Accompanied by 2 allies 1620 | -9/Mines | Found a Scrap Suit stashed away for nefarious purposes 1623 | -9/Mines | Found Scrap Suit 1703 | -9/Mines | Discovered new exit (range 15) 1723 | -9/Mines | Entered Materials 1723 | -8/Materials | Accompanied by 2 allies 1723 | -8/Materials | Evolved 4 slots: Propulsion x2, Utility x2 2025 | -8/Materials | Lost 3 parts (1p1n1u) 2390 | -8/Materials | Central database locked down 2520 | -8/Materials | Discovered new exit (range 3) 2554 | -8/Materials | Entered Factory 2554 | -7/Factory | Evolved 2 slots: Utility x2 2591 | -7/Factory | Repaired Seismic Detector 2850 | -7/Factory | Repaired Wheel 2877 | -7/Factory | Repaired Com. Wheel 2998 | -7/Factory | Garrison activated, responded to threat 3542 | -7/Factory | Discovered new exit (range 15) 3600 | -7/Factory | Entered another Factory area 3600 | -6/Factory | Evolved 2 slots: Utility x1, Weapon x1 3963 | -6/Factory | Build established: Scavenger-Tank 4674 | -6/Factory | Discovered new exit (range 17) 4762 | -6/Factory | Discovered new exit (range 14) 4807 | -6/Factory | Entered Lower Caves 4948 | -6/Lower Caves | Learned Factory stockpile data 5076 | -6/Lower Caves | Learned Factory emergency access door positions 5373 | -6/Lower Caves | Attracted the attention of an 0b10 checkpoint 5393 | -6/Lower Caves | Discovered new exit (range 12) 5418 | -6/Lower Caves | Entered another Lower Caves area 5471 | -6/Lower Caves | Encountered a Warlord checkpoint 5697 | -6/Lower Caves | Attracted the attention of an 0b10 checkpoint 5873 | -6/Lower Caves | Discovered new exit (range 9) 5884 | -6/Lower Caves | Entered Zion 5935 | -6/Zion | System corruption cleaned by Quarantine Array 6018 | -6/Zion | Gained Derelict followers 6072 | -6/Zion | Gained Derelict followers 6171 | -6/Zion | Found Prototype Special Weapon 6171 | -6/Zion | Identified RU-N14's Throwing Claymores 6232 | -6/Zion | Given the Hacking Drone Bay 6343 | -6/Zion | Given A8's code to call for help 6399 | -6/Zion | Met Imprinter 6796 | -6/Zion | Discovered new exit (range 14) 6861 | -6/Zion | Learned location of Warlord (-5) 7086 | -6/Zion | Entered Proximity Caves 7086 | -5/Proximity Caves | Accompanied by 8 allies 7187 | -5/Proximity Caves | Lost 4 allies 7295 | -5/Proximity Caves | Spotted B-75 Beast 7321 | -5/Proximity Caves | Destroyed B-75 Beast 7349 | -5/Proximity Caves | Discovered new exit (range 15) 7368 | -5/Proximity Caves | Entered Factory 7368 | -5/Factory | Accompanied by 2 allies 7368 | -5/Factory | Evolved 2 slots: Utility x2 7400 | -5/Factory | Found Prototype Processor 7400 | -5/Factory | Identified Exp. Targeting Computer 7404 | -5/Factory | Found Exp. Targeting Computer 7406 | -5/Factory | Found Exp. Targeting Computer 7411 | -5/Factory | Found Exp. Targeting Computer 7953 | -5/Factory | Discovered new exit (range 18) 7986 | -5/Factory | Identified exit to Upper Caves 7987 | -5/Factory | Entered Upper Caves 8077 | -5/Upper Caves | Encountered a Warlord checkpoint 8564 | -5/Upper Caves | Discovered new exit (range 4) 8567 | -5/Upper Caves | Identified exit to Upper Caves 8568 | -5/Upper Caves | Entered another Upper Caves area 8691 | -5/Upper Caves | Spotted B-75 Beast 8708 | -5/Upper Caves | Attracted the attention of an 0b10 checkpoint 8802 | -5/Upper Caves | Destroyed B-75 Beast 8854 | -5/Upper Caves | Discovered new exit (range 12) 8866 | -5/Upper Caves | Identified exit to Warlord 8868 | -5/Upper Caves | Entered Warlord 9300 | -5/Warlord | Visited the Vortex Lab 9312 | -5/Warlord | Found Prototype Launcher 9312 | -5/Warlord | Identified Vortex Catalyst Activator 9315 | -5/Warlord | Found Prototype Energy Cannon 9315 | -5/Warlord | Identified Vortex Driver 9316 | -5/Warlord | Warlord's base attacked by MAIN.C 9321 | -5/Warlord | Found Prototype Energy Gun 9321 | -5/Warlord | Identified Vortex Rifle 9397 | -5/Warlord | Found Prototype Device 9397 | -5/Warlord | Identified Wardrone Bay 9548 | -5/Warlord | Met Warlord 9666 | -5/Warlord | Warlord forces counterattacked 9684 | -5/Warlord | Build established: Gunner 9701 | -5/Warlord | Spotted Executioner 9706 | -5/Warlord | Allies destroyed Executioner 9742 | -5/Warlord | Destroyed 7 combat bots 9742 | -5/Warlord | Spotted Striker 9755 | -5/Warlord | Discovered new exit (range 12) 9756 | -5/Warlord | Lost 3 allies 9805 | -5/Warlord | Entered Proximity Caves 9805 | -4/Proximity Caves | Accompanied by 2 allies 9807 | -4/Proximity Caves | Attracted the attention of an 0b10 checkpoint 9870 | -4/Proximity Caves | Lost 5 allies 10029 | -4/Proximity Caves | Ambushed by research squad 10409 | -4/Proximity Caves | Discovered new exit (range 6) 10441 | -4/Proximity Caves | Entered Factory 10441 | -4/Factory | Evolved 2 slots: Power x1, Utility x1 11087 | -4/Factory | Lost 3 parts (1n1u1w) 11181 | -4/Factory | Destroyed 7 combat bots 11371 | -4/Factory | Found Unknown Device 11371 | -4/Factory | Identified Launcher Loader 11441 | -4/Factory | First assault squad dispatched 11499 | -4/Factory | Released all parts (4) 11504 | -4/Factory | Core integrity fell below 50% 11532 | -4/Factory | Lost 16 parts (2p5n6u3w) 11597 | -4/Factory | Core integrity fell below 20% 11628 | -4/Factory | Destroyed by S-27 Virus with Autogun Last Messages --------------- 11584_ Slammed into K-01 Serf. 11591_ K-01 Serf collects debris. 11600_ Connecting with Fabricator... >>Trojan(Liberate) Trojan loaded successfully. Testing... Ready to liberate! 11609_ K-01 Serf destroyed. 11612_ Connecting with Fabricator... >>Force(Overload) EM_IMPRINTER_OVERLOAD 11612_ ALERT: Suspicious activity at Fabricator F001. Dispatching Investigation squad. 11614_ P-70 Sage resets S-27 Virus, system corruption cleaned. 11615_ Fabricator zaps S-27 Virus with an electromagnetic arc. 11615_ Fabricator zaps K-01 Serf with an electromagnetic arc. 11615_ S-27 Virus system terminally corrupted. 11616_ System corrupted: Heat flow error (+131). 11626_ Slug penetrates Wall. 11626_ Construction Platform disabled. Map ----- +----------------------------------------------------+ | ?????????????????????????????????????????????????? | | ?????????????????????????????????????????????????? | | ?????????????????????????????????????????????????? | | ?????????????????????????????????????????????????? | | ?????????????????????????????????????????????????? | | ?????????????????????????????????????????????????? | | ?????????????????????????????????????????????????? | | ?????????????????????????????????????????????????? | | ?????????????????????????????????????????????????? | | ?????????????????????????????????????????????????? | | ?????????????????????????????????????????????????? | | ?????????????????????????????????????????????????? | | ?????????????????????????????????????????????????? | | ?????????????????????????????????????????????????? | | ?????????????????????????????????????????????????? | | ?????????????????????????????????????????????????? | | ????????????########?#######?????????????????????? | | ????????????#= ? # #?????????????????????? | | ????????????# """ # #?????????????????????? | | ############# """" # #?????????????????????? | | ^ # """" # #?????????????????????? | | # """" ; #?????????????????????? | | """ / """" # #?????????????????????? | | """ # """" # #?????????????????????? | | """ # """" # s* #?????????????????????? | | # "" # s !; s@ #?????????????????????? | | # " """ #####+######/######+?????????????????? | | # "F """ s ??????????? | | # "" """ ??????????? | | # ??????????? | | # ] ???????????? | | # %### ???????????? | | # #?##################+######+#####????????????? | | # #????????????????????????????????????????????? | | # #????????????????????????????????????????????? | | # #????????????????????????????????????????????? | | # #????????????????????????????????????????????? | | ! ########+#######?????????????????????????????? | | % #?????????????????????????????? | | +????????????????????????????? | | #?????????????????????????????? | | #####/######### #?????????????????????????????? | | ## #??????????????????????????????????????? | | ## #??????????????????????????????????????? | | ## """ +??????????????????????????????????????? | | / """ #??????????????????????????????????????? | | # """ #??????????????????????????????????????? | | # "" #??????????????????????????????????????? | | + "" #??????????????????????????????????????? | | ### #??????????????????????????????????????? | +----------------------------------------------------+ Best States ------------- Heat Dissipation 105 Energy Generation 34 Energy Capacity 370 Matter Stores 300 Matter Capacity 300 Sight Range 18 Terrain Scan Density 10 Armor Coverage 1050 Resistance: KI 30 Propulsion Shielding 66 Evasion (%) 55 Targeting Accuracy 12 Item Schematics ----------------- Huge Storage Unit | -10/Materials | Hacked Arm. Wheel | -5/Factory | Scanalyzed Exp. Targeting Computer | -5/Factory | Scanalyzed Imp. Medium Armor Plating | -5/Factory | Scanalyzed Robot Schematics ------------------ None Fabricated ------------ Nothing Repaired ---------- Seismic Detector | 10% | -7/Factory Wheel | 30% | -7/Factory Com. Wheel | 20% | -7/Factory Studied --------- Wheel | -5/Factory | Hacked Arm. Wheel | -5/Factory | Hacked Alien Tech Used ----------------- None Achievements -------------- None Challenges ------------ None Game ------ Seed LegCryofiberBlasthammer Manual? 0 Play Time 02:24:52 Cumulative 233.2 hours Start 2026.08.11 @ 17:21:38 End 2026.08.20 @ 15:21:41 Sessions 5 Manual Loads 0 Difficulty Rogue Special Mode None Game No. 285 Rogue 285 Adventurer 0 Explorer 0 Win Type - Total 6 Types 6/0/0/0/0/0/0/0/0/0 Lore% 81 Gallery% 63 Achievement% 51 Wizard Run 0 Options --------- Layout 0 ASCII 0 Keyboard 0 Movement Numpad Keybinds 0 Fullscreen 1 Font 18/Terminus Map View 76x50 Zoom Use 0% Tactical HUD 1 Map Filters NONE Filters NONE Steam 1 RUN: 9926a3c1-0531-4b47-b343-ba1e6b70bea2